bitfinex/quotes_ETHUSD_20241030
["timestamp","ask_amount","ask_price","bid_price","bid_amount"]
[1730255785741,3.78645,2641.0,2640.5,4.54665]
[1730255785951,4.62548,2641.0,2640.5,4.54665]
[1730255786159,0.10121112,2640.9,2640.6,3.78689]
[1730255786367,0.10121112,2640.9,2640.5,4.54657]
[1730255786662,3.78631,2641.1,2640.6,3.78701]
[1730255787033,0.10120589,2641.0,2640.6,3.78701]
[1730255787360,0.10120589,2641.0,2640.5,4.54657]
[1730255787569,3.88778589,2641.0,2640.5,4.54657]
[1730255790226,3.88778589,2641.0,2640.5,5.607362]
[1730255793469,3.78661,2640.9,2640.5,1.820292]
[1730255793828,3.78697,2640.7,2640.2,6.8454773]
[1730255794165,3.78697,2640.7,2640.3,0.8057]
[1730255794355,0.10120589,2640.6,2640.3,0.8057]
[1730255794760,3.88822589,2640.6,2640.3,0.8057]
[1730255795011,0.10120589,2640.6,2640.3,0.8057]
[1730255795302,3.78672,2640.9,2640.4,0.38636073]
[1730255795303,3.78682,2640.8,2640.4,0.38636073]
[1730255795512,0.10120589,2640.7,2640.3,4.59304]
[1730255796003,3.78682,2640.8,2640.3,4.59304]
[1730255796214,0.10120589,2640.6,2640.3,0.8057]
[1730255796386,3.78689,2640.7,2640.3,0.8057]
[1730255796783,0.10121112,2640.6,2640.3,0.8057]
[1730255798818,0.10121112,2640.6,2640.3,4.59314]
[1730255799024,0.10121112,2640.6,2640.4,0.686714]
[1730255799174,0.7967,2641.0,2640.4,4.473924]
[1730255799520,7.6711273,2640.9,2640.4,4.473924]
[1730255799879,3.8844073,2640.9,2640.4,4.473924]
[1730255800080,7.6710773,2640.9,2640.4,4.473924]
[1730255800587,3.8844073,2640.9,2640.4,8.261144]
[1730255800776,0.0978273,2640.9,2640.6,3.78693]
[1730255800982,0.0978273,2640.9,2640.7,0.8057]
[1730255801223,7.57278,2641.1,2640.7,0.8057]
[1730255801526,3.78646,2641.0,2640.7,0.8057]
[1730255801678,3.88427682,2641.0,2640.7,0.8057]
[1730255802024,3.88427682,2641.0,2640.7,1.31775924]
[1730255802025,0.09781682,2641.0,2640.7,1.31775924]
[1730255802209,0.09781682,2641.0,2640.8,3.7867]
[1730255802377,7.698603,2641.3,2640.8,3.7867]
[1730255802583,0.09783255,2640.9,2640.7,1.31775924]
[1730255802930,3.7863,2641.1,2640.8,0.73786592]
[1730255803288,3.78652,2641.0,2640.5,5.1207124]
[1730255803488,3.7863,2641.1,2640.5,5.1207124]
[1730255803688,3.7863,2641.1,2640.6,3.78701]
[1730255803918,7.57271,2641.1,2640.6,3.78701]
[1730255804097,3.7863,2641.1,2640.6,3.78701]
[1730255804411,3.7863,2641.1,2640.6,0.89077224]
[1730255804597,3.78619,2641.2,2640.8,0.8057]
[1730255805918,3.78619,2641.2,2640.8,4.59242]
[1730255806421,3.73619,2641.2,2640.8,0.8057]
[1730255806784,7.52246,2641.2,2640.8,0.8057]
[1730255807222,0.09793202,2641.1,2640.8,0.8057]
[1730255807426,3.88433202,2641.1,2640.8,0.8057]
[1730255807786,0.09793202,2641.1,2640.8,0.8057]
[1730255808187,3.88433202,2641.1,2640.8,0.8057]
[1730255808387,3.88433202,2641.1,2640.8,5.36815722]
[1730255808388,0.09793202,2641.1,2640.8,5.36815722]
[1730255810637,0.126363,2641.3,2640.9,0.7839073]
[1730255810926,3.78653,2641.0,2640.7,0.7839073]
[1730255811130,3.78639,2641.1,2640.6,2.45217954]
[1730255811333,0.09152694,2640.9,2640.7,0.79431629]
[1730255811491,3.78639,2641.1,2640.7,0.79431629]
[1730255811692,0.09152694,2641.0,2640.6,1.5614073]
[1730255811896,3.912463,2641.3,2640.6,5.3482973]
[1730255812126,3.87774694,2641.2,2640.6,5.3482973]
[1730255812325,0.09152694,2641.2,2640.7,3.61259294]
[1730255812605,0.09152694,2641.2,2640.8,3.73673]
[1730255812804,0.09152694,2641.2,2640.8,4.84762973]
[1730255813101,0.09155325,2641.1,2640.9,0.7775]
[1730255813301,3.912383,2641.3,2640.9,0.7775]
[1730255813536,0.09155325,2641.2,2640.9,1.2250473]
[1730255813944,3.912383,2641.3,2640.9,0.4475473]
[1730255814142,0.09155325,2641.1,2640.9,0.4475473]
[1730255814327,0.09155325,2641.2,2640.9,0.4475473]
[1730255814522,3.912383,2641.3,2640.9,0.4475473]
[1730255814864,0.08851989,2641.1,2640.9,0.4475473]
[1730255815058,3.912383,2641.3,2640.9,0.4475473]
[1730255815430,0.08851989,2641.2,2640.9,0.4475473]
[1730255815835,3.912383,2641.3,2640.9,0.4475473]
[1730255816032,0.08851989,2641.1,2640.9,0.4475473]
[1730255816331,3.912383,2641.3,2640.9,0.4475473]
[1730255816719,0.08851989,2641.2,2640.9,0.4475473]
[1730255817167,3.912383,2641.3,2640.9,0.44758586]
[1730255817318,0.088512,2641.1,2640.9,0.44758586]
[1730255817519,3.912383,2641.3,2640.9,0.44758586]
[1730255817760,0.088512,2641.0,2640.9,0.44758586]
[1730255817925,3.912383,2641.3,2640.9,0.44758586]
[1730255818260,0.088512,2641.0,2640.9,0.44758586]
[1730255818461,3.912383,2641.3,2640.9,0.44758586]
[1730255818621,0.08850937,2641.0,2640.8,4.56415]
[1730255818940,3.912383,2641.3,2640.9,0.44764804]
[1730255819160,3.912383,2641.3,2641.0,0.44764804]
[1730255819333,7.698483,2641.3,2640.9,0.44764804]
[1730255819661,3.912383,2641.3,2641.0,0.44764804]
[1730255819832,3.912383,2641.3,2640.8,4.56415]
[1730255819833,3.912383,2641.3,2640.9,0.44764804]
[1730255820445,3.912383,2641.3,2641.0,0.44764804]
[1730255820649,3.912383,2641.3,2640.8,4.56415]
[1730255820831,3.912383,2641.3,2641.1,0.44778035]
[1730255821030,3.912383,2641.3,2640.9,0.44778035]
[1730255821679,0.126363,2641.3,2640.9,0.44778035]
[1730255821977,0.8101,2641.0,2640.9,0.44778035]
[1730255822357,0.8101,2641.0,2640.9,0.44801675]
[1730255824379,5.14467033,2641.0,2640.4,0.7839073]
[1730255824580,5.14467033,2641.0,2640.3,0.7839073]
[1730255824581,3.78699,2640.7,2640.3,0.7839073]
[1730255824784,4.59676,2640.9,2640.3,3.78733]
[1730255825086,0.08845941,2640.6,2640.3,3.78733]
[1730255825245,3.78673,2640.8,2640.3,5.63733661]
[1730255825439,4.59676,2640.9,2640.4,3.7873]
[1730255825440,0.08845415,2640.5,2640.4,3.7873]
[1730255825647,4.59676,2640.9,2640.4,4.2353069]
[1730255825946,3.87525941,2640.8,2640.5,0.4480069]
[1730255826480,3.78701,2640.6,2640.5,0.4480069]
[1730255826780,3.7872,2640.5,2640.2,0.7839073]
[1730255826999,3.78731,2640.4,2640.3,0.4480349]
[1730255827160,3.78731,2640.4,2640.2,0.4480349]
[1730255827161,3.78744,2640.3,2640.2,0.4480349]
[1730255827485,3.78744,2640.3,2640.1,0.4480349]
[1730255827486,4.59769,2640.2,2640.1,0.4480349]
[1730255827669,4.59769,2640.2,2639.8,0.4480349]
[1730255827670,3.78773,2640.1,2639.8,0.4480349]
[1730255827876,4.59772,2640.2,2639.8,0.4480349]
[1730255828054,0.08837523,2640.0,2639.8,0.4480349]
[1730255828262,0.08837523,2639.9,2639.8,5.71501452]
[1730255828479,0.8101,2640.2,2639.8,5.26697962]
[1730255828787,0.08827002,2640.1,2639.8,5.71486179]
[1730255828948,0.08827002,2640.1,2639.8,5.26697962]
[1730255829144,0.08827002,2640.1,2639.8,4.93095449]
[1730255829349,0.08827002,2640.1,2639.8,1.14280449]
[1730255829567,0.08827002,2640.1,2639.8,0.44788217]
[1730255832654,0.08827002,2640.1,2639.7,3.78828]
[1730255834591,3.87603002,2640.1,2639.6,4.54154]
[1730255835346,0.08827002,2640.1,2639.6,1.20054179]
[1730255835590,0.08827002,2640.1,2639.6,0.7531]
[1730255835748,4.59769,2640.2,2639.7,3.78828]
[1730255836161,0.08827002,2640.1,2639.7,3.78828]
[1730255837081,0.08827002,2640.1,2640.0,3.78787]
[1730255837347,3.78708,2640.6,2640.1,3.78771]
[1730255837551,3.78708,2640.6,2640.1,7.57542]
[1730255837751,0.08505835,2640.5,2640.1,8.408182]
[1730255837965,0.08505835,2640.5,2640.1,4.620472]
[1730255838189,0.08505835,2640.5,2640.3,2.274]
[1730255838393,3.78703,2640.6,2640.1,4.620472]
[1730255838593,0.0851741,2640.4,2640.1,4.620472]
[1730255838753,0.8101,2640.7,2640.1,4.620462]
[1730255839090,4.59698,2640.7,2640.2,3.78754]
[1730255839409,3.7871,2640.6,2640.2,0.4620462]
[1730255839557,3.7871,2640.6,2640.1,3.78761]
[1730255839558,3.8722741,2640.6,2640.1,3.78761]
[1730255839954,0.0851741,2640.6,2640.1,7.57524]
[1730255840158,0.0851741,2640.6,2640.0,3.78787]
[1730255840467,0.0851741,2640.6,2640.3,3.78744]
[1730255841996,0.0851741,2640.6,2640.2,0.7531]
[1730255842180,0.0851741,2640.6,2640.2,4.54068]
[1730255845107,4.59698,2640.7,2640.2,4.54068]
[1730255845309,0.0823718,2640.5,2640.2,4.54068]
[1730255845468,4.59698,2640.7,2640.2,5.58886701]
[1730255845469,0.0823718,2640.4,2640.2,5.58886701]
[1730255845875,4.59698,2640.7,2640.2,9.37635701]
[1730255845876,0.0823718,2640.3,2640.2,9.37635701]
[1730255846085,4.59698,2640.7,2640.2,9.37635701]
[1730255846420,0.0823718,2640.6,2640.2,9.37628701]
[1730255846712,0.0823718,2640.6,2640.2,5.58877701]
[1730255847014,0.0823718,2640.6,2640.4,3.78723]
[1730255847186,0.0823718,2640.6,2640.4,3.78721]
[1730255847386,0.8101,2640.9,2640.4,3.78721]
[1730255847387,0.8101,2640.9,2640.5,3.78716]
[1730255847797,4.5965,2641.1,2640.6,3.78694]
[1730255847999,4.5965,2641.1,2640.6,4.54004]
[1730255848172,4.5965,2641.1,2640.7,0.83272]
[1730255849022,0.8101,2641.1,2640.7,8.40632]
[1730255849173,0.8101,2641.1,2640.7,8.40631]
[1730255849369,0.8101,2641.1,2640.7,4.61951]
[1730255849568,0.8101,2641.1,2640.5,3.78708]
[1730255849569,5.2741555,2641.0,2640.5,3.78708]
[1730255849800,3.78665,2640.9,2640.4,4.54039]
[1730255850482,5.2741555,2641.0,2640.4,4.54039]
[1730255850483,3.78681,2640.8,2640.4,0.7531]
[1730255850685,4.56126,2640.7,2640.2,0.8063]
[1730255851230,3.78702,2640.6,2640.1,7.5714973]
[1730255851433,3.78702,2640.6,2640.1,9.14664104]
[1730255851594,4.56126,2640.7,2640.2,4.06725543]
[1730255851793,4.56126,2640.7,2640.2,4.51475211]
[1730255852033,4.56125,2640.7,2640.2,4.06725543]
[1730255852333,8.34822,2640.7,2640.2,3.78758]
[1730255852513,0.08263483,2640.6,2640.2,3.78758]
[1730255853107,3.86966483,2640.6,2640.1,5.36286374]
[1730255855793,7.65677483,2640.6,2640.1,5.36286374]
[1730255855995,0.7743,2640.3,2639.9,0.7839073]
[1730255856300,0.7743,2640.3,2640.0,0.27976194]
[1730255856301,4.56187,2640.3,2640.0,0.27976194]
[1730255856513,3.87023483,2640.2,2640.0,0.27976194]
[1730255857796,0.08263483,2640.2,2640.0,0.27976194]
[1730255858098,3.87022483,2640.2,2640.0,0.27976194]
[1730255858300,3.78759,2640.2,2640.0,0.27976194]
[1730255858641,0.082406,2640.1,2640.0,0.27976194]
[1730255858849,4.644436,2640.1,2640.0,0.27976194]
[1730255860240,3.78787,2640.0,2639.4,4.06841194]
[1730255860449,4.644436,2640.1,2639.4,4.06841194]
[1730255860450,3.78805,2639.9,2639.4,0.27976194]
[1730255860627,3.87032709,2639.9,2639.4,0.72783498]
[1730255861025,3.87032709,2639.9,2639.4,0.27993653]
[1730255861247,3.87032709,2639.9,2639.4,4.06866653]
[1730255861658,3.87032709,2639.9,2639.4,0.27993653]
[1730255861825,3.87032709,2639.9,2639.3,8.66378653]
[1730255861826,3.78819,2639.8,2639.3,8.66378653]
[1730255862030,0.08221394,2639.8,2639.4,0.27993653]
[1730255862852,0.7743,2639.7,2639.4,0.27993653]
[1730255863057,4.64480499,2639.7,2639.2,4.51685498]
[1730255863240,0.85648499,2639.7,2639.3,3.78886]
[1730255863986,0.85648499,2639.7,2639.3,5.00585194]
[1730255864926,0.85648499,2639.7,2639.3,8.79465194]
[1730255865130,0.85648499,2639.7,2639.3,5.00579194]
[1730255866830,0.85648499,2639.7,2639.3,8.79459194]
[1730255867032,0.85648499,2639.7,2639.4,0.27989092]
[1730255867235,0.85648499,2639.7,2639.3,9.07448286]
[1730255867433,0.85648499,2639.7,2639.4,0.27989092]
[1730255871354,0.85648499,2639.7,2639.3,5.00579194]
[1730255871657,4.64486499,2639.7,2639.4,0.2798903]
[1730255871824,4.64486499,2639.7,2639.1,9.1683273]
[1730255871825,4.64486499,2639.7,2639.2,4.0688803]
[1730255872660,4.64486499,2639.7,2639.2,0.2798903]
[1730255872956,3.78846,2639.6,2639.1,4.8752503]
[1730255873161,3.78846,2639.6,2639.2,0.94207931]
[1730255873319,3.78846,2639.6,2639.2,1.22195972]
[1730255873525,0.08200078,2639.5,2639.2,0.27988041]
[1730255873763,0.08200078,2639.5,2639.1,0.27988041]
[1730255873764,3.87066078,2639.5,2639.1,0.27988041]
[1730255873945,3.87066078,2639.5,2638.9,5.3308473]
[1730255873946,0.7692,2639.4,2639.0,0.27988041]
[1730255874254,0.7692,2639.4,2638.9,4.06922041]
[1730255874435,0.7692,2639.4,2638.9,5.68542573]
[1730255874658,0.08200078,2639.3,2639.0,4.06914041]
[1730255874994,0.08200078,2639.3,2639.0,3.78926]
[1730255875648,0.08200078,2639.3,2638.9,9.64271398]
[1730255875971,0.08200078,2639.3,2638.9,9.19490532]
[1730255876140,0.08200078,2639.3,2639.0,5.38496408]
[1730255876562,0.08200078,2639.3,2639.1,3.78916]
[1730255876867,0.08200078,2639.3,2639.1,4.06895702]
[1730255880180,0.08200078,2639.3,2639.1,3.78916]
[1730255880496,0.08200078,2639.3,2639.1,4.06877334]
[1730255880704,0.08200078,2639.3,2639.1,4.88330229]
[1730255880873,0.08200078,2639.3,2639.1,1.37376492]
[1730255881203,0.08200078,2639.3,2639.0,4.06891263]
[1730255881365,0.08200078,2639.3,2639.0,5.55649813]
[1730255881566,0.08200078,2639.3,2639.1,3.78905]
[1730255882668,0.08200078,2639.3,2639.1,4.06860288]
[1730255883294,0.08200078,2639.3,2639.1,3.78905]
[1730255883607,0.08200078,2639.3,2639.1,4.19239274]
[1730255884511,4.60353,2639.2,2638.7,3.78974]
[1730255884687,4.60353,2639.2,2638.7,4.06938814]
[1730255885003,0.08186123,2639.1,2638.7,3.78974]
[1730255885235,0.08186123,2639.1,2638.5,4.61124]
[1730255885236,3.87111123,2639.1,2638.6,4.06951551]
[1730255885435,3.87111123,2639.1,2638.6,0.27965551]
[1730255885604,3.78935,2639.0,2638.5,4.89089551]
[1730255885805,3.8711586,2639.0,2638.5,5.60713934]
[1730255886001,0.0818086,2639.0,2638.6,0.27965551]
[1730255886204,3.8711486,2639.0,2638.6,0.27965551]
[1730255886443,3.8711486,2639.0,2638.5,5.32748383]
[1730255887038,3.8711486,2639.0,2638.3,5.05891882]
[1730255887039,3.78967,2638.8,2638.3,5.05891882]
[1730255887532,3.78967,2638.8,2638.3,4.61147]
[1730255887739,3.87154226,2638.7,2638.3,3.79017]
[1730255887901,3.87154226,2638.7,2638.4,0.27960051]
[1730255888237,0.8144,2638.6,2638.3,0.27960051]
[1730255888602,0.08178226,2638.5,2638.3,3.79031]
[1730255889445,0.08178226,2638.5,2638.1,7.61182]
[1730255889606,3.87182226,2638.5,2637.9,5.05929938]
[1730255889940,3.87182226,2638.5,2637.6,1.58147278]
[1730255889941,3.79061,2638.1,2637.6,4.23844938]
[1730255890151,3.79058,2638.2,2637.7,3.79103]
[1730255890354,0.08151889,2638.0,2637.9,2.3089355]
[1730255890636,3.79002,2638.6,2638.1,3.7905]
[1730255890637,0.8144,2638.6,2638.1,3.7905]
[1730255890844,4.60432,2638.6,2638.1,3.7905]
[1730255891541,3.7901,2638.5,2638.0,5.2783655]
[1730255891709,4.60432,2638.6,2638.0,3.79073]
[1730255892037,1.4876355,2638.5,2637.8,3.79093]
[1730255892241,3.79047,2638.2,2637.8,3.79093]
[1730255892538,3.79047,2638.2,2637.7,6.79116]
[1730255892753,3.79036,2638.3,2637.8,3.79102]
[1730255894452,4.60471,2638.4,2637.7,8.08027455]
[1730255894453,3.79047,2638.2,2637.7,8.08027455]
[1730255894836,3.79047,2638.2,2637.8,3.79103]
[1730255895463,0.8125,2638.1,2637.5,3.79137]
[1730255895636,4.6032,2638.1,2637.5,3.79137]
[1730255895841,4.60316,2638.1,2637.5,3.79146]
[1730255896161,3.79078,2638.0,2637.5,3.79133]
[1730255896660,4.77891855,2638.0,2637.5,3.79133]
[1730255896874,6.0911155,2637.9,2637.4,3.79153]
[1730255897028,2.3001355,2637.9,2637.4,3.79153]
[1730255897229,7.58219,2637.8,2637.2,7.58363]
[1730255897424,3.79104,2637.8,2637.3,3.79168]
[1730255897630,3.79121,2637.7,2637.2,3.79186]
[1730255898326,0.8125,2637.5,2637.2,3.79186]
[1730255899468,0.08122117,2637.4,2637.2,3.79186]
[1730255900032,0.08122117,2637.4,2637.2,3.79183]
[1730255900252,0.08122117,2637.4,2637.3,3.79175]
[1730255900483,0.8125,2637.8,2637.3,3.79175]
[1730255900687,0.08122117,2637.4,2637.3,3.79175]
[1730255900989,0.8125,2637.8,2637.3,3.79175]
[1730255901196,0.08122117,2637.4,2637.3,3.79175]
[1730255901406,0.8125,2637.8,2637.3,4.86020265]
[1730255901615,0.08122117,2637.7,2637.3,3.79175]
[1730255901774,0.08122117,2637.7,2637.2,3.79183]
[1730255901975,4.60353,2637.8,2637.2,7.58362]
[1730255902191,0.08122117,2637.6,2637.2,3.79179]
[1730255902411,0.8125,2637.8,2637.4,3.79154]
[1730255902610,0.08122117,2637.5,2637.4,3.79154]
[1730255903077,0.8125,2637.8,2637.4,3.79154]
[1730255903413,0.08122117,2637.5,2637.4,3.79154]
[1730255903617,0.8125,2637.8,2637.4,3.79154]
[1730255903918,0.08122117,2637.5,2637.4,3.79154]
[1730255904123,0.8125,2637.8,2637.4,3.79154]
[1730255904328,0.08122117,2637.5,2637.4,3.79154]
[1730255904488,0.8125,2637.8,2637.4,3.79154]
[1730255904689,0.08122117,2637.5,2637.4,7.58307]
[1730255904904,0.8125,2637.8,2637.4,3.79153]
[1730255905102,0.08122117,2637.5,2637.4,3.79153]
[1730255905298,0.8125,2637.8,2637.4,3.79153]
[1730255905527,0.08122117,2637.5,2637.4,3.79153]
[1730255905715,0.8125,2637.8,2637.4,3.79153]
[1730255905920,0.08122117,2637.5,2637.4,3.79153]
[1730255906102,0.8125,2637.8,2637.4,3.79153]
[1730255906306,0.08122117,2637.5,2637.4,3.79153]
[1730255906519,0.8125,2637.8,2637.4,3.79153]
[1730255906825,0.08122117,2637.5,2637.4,3.79153]
[1730255907032,0.8125,2637.8,2637.4,3.79153]
[1730255907231,0.08122117,2637.7,2637.4,3.79153]
[1730255907530,0.08109467,2637.7,2637.4,3.79153]
[1730255907935,0.8125,2637.8,2637.4,3.79153]
[1730255908234,0.08109467,2637.6,2637.2,3.79176]
[1730255908394,3.79118,2637.7,2637.2,3.79176]
[1730255908593,3.87227467,2637.7,2637.3,3.79174]
[1730255908817,0.08109467,2637.7,2637.3,3.79174]
[1730255909093,0.8125,2637.8,2637.3,3.79174]
[1730255909293,0.08098924,2637.6,2637.3,3.79174]
[1730255909495,0.8125,2637.8,2637.4,3.7916]
[1730255909832,0.08098924,2637.5,2637.4,3.7916]
[1730255910030,4.60354,2637.8,2637.4,3.7916]
[1730255910413,0.0809708,2637.7,2637.3,3.79174]
[1730255910806,4.60354,2637.8,2637.3,3.79174]
[1730255911010,0.0809708,2637.6,2637.3,3.79174]
[1730255911196,4.60354,2637.8,2637.3,3.79174]
[1730255911530,4.60354,2637.8,2637.2,3.7918]
[1730255911690,0.0809708,2637.7,2637.4,3.79154]
[1730255911893,0.8125,2637.8,2637.4,3.79154]
[1730255912100,0.0809708,2637.6,2637.4,3.79154]
[1730255912335,0.8125,2637.8,2637.4,3.79154]
[1730255912533,0.0809708,2637.5,2637.4,3.79154]
[1730255912719,4.60354,2637.8,2637.4,3.79154]
[1730255912925,0.0809708,2637.5,2637.4,3.79154]
[1730255913110,4.60354,2637.8,2637.4,3.79154]
[1730255913434,0.0809708,2637.5,2637.4,3.79154]
[1730255913633,4.60354,2637.8,2637.3,3.79175]
[1730255913834,0.0809708,2637.7,2637.3,3.79175]
[1730255914039,4.60354,2637.8,2637.3,3.79175]
[1730255914333,0.0809708,2637.7,2637.3,3.79175]
[1730255914994,4.60354,2637.8,2637.3,3.79175]
[1730255915193,0.0809629,2637.6,2637.3,3.79175]
[1730255915394,4.60354,2637.8,2637.3,3.79175]
[1730255915592,0.0809629,2637.5,2637.3,3.79175]
[1730255916039,4.60354,2637.8,2637.3,3.79175]
[1730255916239,0.08094969,2637.4,2637.2,3.79181]
[1730255916396,0.08094969,2637.4,2637.3,3.79175]
[1730255916929,4.60362,2637.8,2637.3,3.79175]
[1730255917247,0.08094969,2637.7,2637.3,3.79175]
[1730255917629,4.60362,2637.8,2637.3,3.79175]
[1730255918202,0.08094706,2637.7,2637.3,3.79175]
[1730255918747,4.60362,2637.8,2637.3,3.79175]
[1730255918946,0.08094706,2637.6,2637.3,3.79175]
[1730255919149,4.60362,2637.8,2637.3,4.68135517]
[1730255919324,0.08094706,2637.5,2637.3,4.68135517]
[1730255919520,4.60362,2637.8,2637.3,4.68135517]
[1730255919729,0.08094706,2637.7,2637.3,3.79175]
[1730255919913,4.60362,2637.8,2637.3,3.79175]
[1730255920108,0.08094706,2637.7,2637.3,3.79175]
[1730255920308,4.60362,2637.8,2637.3,3.79175]
[1730255920543,3.87213706,2637.7,2637.2,8.11887173]
[1730255920708,0.08094706,2637.7,2637.3,3.79167]
[1730255920908,4.60356,2637.8,2637.3,3.79167]
[1730255921107,0.08094706,2637.7,2637.3,3.79167]
[1730255921349,3.79134,2637.6,2637.2,4.32706173]
[1730255921721,0.08094706,2637.5,2637.2,4.32706173]
[1730255922841,3.79118,2637.7,2637.2,8.11887173]
[1730255923155,0.08094706,2637.6,2637.3,3.79173]
[1730255923454,6.0912055,2637.8,2637.3,3.79173]
[1730255923747,0.08094706,2637.7,2637.3,3.79173]
[1730255924047,3.79119,2637.7,2637.2,4.32706173]
[1730255924250,3.87227706,2637.6,2637.2,3.79177]
[1730255924450,5.2793755,2637.4,2636.9,0.8026]
[1730255924650,0.08091806,2637.3,2636.9,0.8026]
[1730255924856,0.08091806,2637.3,2637.0,3.79216]
[1730255925414,0.08091806,2637.3,2636.9,0.8026]
[1730255925610,0.08091806,2637.3,2636.9,4.59485]
[1730255926573,0.08091806,2637.3,2637.0,3.79215]
[1730255926877,0.08091806,2637.3,2636.9,3.79232]
[1730255927770,3.87275806,2637.3,2636.8,3.79247]
[1730255927969,0.8019,2637.2,2636.8,4.07231694]
[1730255928274,0.08081523,2637.1,2636.8,4.07231694]
[1730255928448,0.08081523,2637.1,2636.9,3.7923]
[1730255929235,0.08081523,2637.1,2636.8,4.07230694]
[1730255929435,0.08081523,2637.1,2636.8,0.27984694]
[1730255929732,0.08081523,2637.1,2636.7,3.79253]
[1730255929962,3.87286523,2637.1,2636.7,3.79253]
[1730255930213,0.08081523,2637.1,2636.6,0.27984694]
[1730255930372,0.8019,2636.9,2636.6,0.27984694]
[1730255930744,0.08065173,2636.8,2636.7,3.79261]
[1730255931148,0.8019,2636.9,2636.7,3.79261]
[1730255931334,0.07796334,2636.8,2636.7,3.79261]
[1730255931932,0.07796334,2636.8,2636.6,4.07298807]
[1730255932139,0.07796334,2636.8,2636.6,4.52139244]
[1730255934571,0.07796334,2636.8,2636.7,3.79261]
[1730255934742,0.07796334,2636.8,2636.7,4.07318368]
[1730255935181,0.07796334,2636.8,2636.7,0.28057368]
[1730255936086,0.8019,2636.9,2636.7,0.28057368]
[1730255936258,0.07791059,2636.8,2636.7,0.28057368]
[1730255937478,0.07791059,2636.8,2636.6,4.52160805]
[1730255938182,0.07791059,2636.8,2636.6,0.44840437]
[1730255939660,5.35803609,2636.8,2636.5,0.28057368]
[1730255939854,5.35803609,2636.8,2636.4,3.79302]
[1730255940060,5.35803609,2636.8,2636.3,4.07375368]
[1730255940281,5.35803609,2636.8,2636.4,3.79304]
[1730255940498,1.56554609,2636.8,2636.4,7.86657368]
[1730255940798,1.56554609,2636.8,2636.5,0.28057368]
[1730255941088,1.56554609,2636.8,2636.4,4.07353368]
[1730255941697,1.56554609,2636.8,2636.4,3.79296]
[1730255942058,5.35809609,2636.8,2636.3,4.07376368]
[1730255942498,1.56554609,2636.8,2636.3,4.07376368]
[1730255942996,1.56554609,2636.8,2636.4,3.79304]
[1730255943754,0.07791059,2636.8,2636.4,3.79298]
[1730255943955,0.07791059,2636.8,2636.4,4.6580491]
[1730255944968,0.07791059,2636.8,2636.4,0.8650691]
[1730255945169,3.79262,2636.7,2636.3,0.28072558]
[1730255945371,5.35801609,2636.8,2636.3,4.07389558]
[1730255945576,0.07776553,2636.6,2636.3,4.07389558]
[1730255945772,5.2801055,2636.8,2636.3,0.28072558]
[1730255945990,0.07776553,2636.5,2636.3,0.28072558]
[1730255946298,0.07776553,2636.4,2636.3,4.78100538]
[1730255946471,1.4876355,2636.8,2636.3,5.06173096]
[1730255946676,0.07776553,2636.7,2636.3,5.06173096]
[1730255946872,1.4876355,2636.8,2636.4,3.79302]
[1730255947102,0.07776553,2636.7,2636.4,3.79302]
[1730255947401,4.59424,2636.9,2636.4,3.79302]
[1730255947876,4.59424,2636.9,2636.4,3.79297]
[1730255947877,0.07776553,2636.8,2636.4,3.79297]
[1730255949167,0.07776553,2636.8,2636.4,7.58594]
[1730255949369,0.07776553,2636.8,2636.5,0.28072558]
[1730255949583,0.07776553,2636.8,2636.4,3.79297]
[1730255950907,0.07776553,2636.8,2636.4,3.79295]
[1730255951604,0.07776553,2636.8,2636.5,3.79288]
[1730255951778,0.07776553,2636.8,2636.5,4.07360558]
[1730255953128,0.07776553,2636.8,2636.7,3.79261]
[1730255953409,0.7702,2638.1,2637.0,0.8013]
[1730255953575,0.7702,2637.6,2637.1,7.58388]
[1730255953775,0.7702,2637.6,2637.1,8.50092361]
[1730255953977,0.7702,2637.6,2637.1,0.91704361]
[1730255953978,6.0492255,2637.6,2637.1,0.91704361]
[1730255954303,0.0775494,2637.5,2637.1,3.79196]
[1730255954800,4.56159,2637.6,2637.1,3.79196]
[1730255955006,0.7702,2637.6,2637.2,3.79185]
[1730255955209,0.0775494,2637.5,2637.3,3.79168]
[1730255955369,0.0775494,2637.5,2637.2,3.79185]
[1730255956374,0.0775494,2637.5,2637.1,0.28042684]
[1730255956703,0.8016,2637.3,2636.9,4.07272684]
[1730255956879,0.0777024,2637.2,2636.9,4.07272684]
[1730255957081,0.8016,2637.3,2636.9,4.07272684]
[1730255957313,0.0777024,2637.2,2636.9,4.07272684]
[1730255957601,0.8016,2637.3,2636.9,4.07272684]
[1730255957808,0.0777024,2637.1,2637.0,3.79218]
[1730255958270,0.8016,2637.3,2637.0,3.79218]
[1730255958466,0.8016,2637.3,2637.0,4.24087985]
[1730255958467,0.0777024,2637.2,2637.0,4.24087985]
[1730255958805,0.8016,2637.3,2637.0,3.79218]
[1730255958967,0.0777024,2637.1,2637.0,3.79218]
[1730255959170,0.8016,2637.3,2637.0,7.58428]
[1730255959510,0.8016,2637.5,2637.0,3.7921]
[1730255959716,0.0777024,2637.4,2637.0,4.07268977]
[1730255960004,0.0777024,2637.4,2637.2,3.79181]
[1730255961118,0.0777024,2637.4,2637.1,0.28058977]
[1730255961509,0.0777024,2637.4,2637.1,4.07260977]
[1730255961903,0.0777024,2637.4,2637.1,0.28058977]
[1730255962430,3.8693424,2637.4,2637.1,0.28058977]
[1730255962738,0.0777024,2637.4,2637.0,3.79206]
[1730255962911,0.0777024,2637.4,2637.0,8.11833161]
[1730255963539,0.0777024,2637.4,2637.0,4.32623161]
[1730255964932,0.0777024,2637.4,2637.0,3.79070984]
[1730255966822,0.0777024,2637.4,2637.0,7.58280984]
[1730255967022,0.0777024,2637.4,2637.1,3.79203]
[1730255967883,0.0777024,2637.4,2637.1,0.28082311]
[1730255968021,0.0777024,2637.4,2637.2,3.7919]
[1730255968859,0.0777024,2637.4,2637.2,3.79181]
[1730255970558,0.0777024,2637.4,2637.3,3.79175]
[1730255970775,0.0777024,2637.4,2637.3,4.07261906]
[1730255971329,0.0777024,2637.4,2637.3,3.79175]
[1730255971932,0.0777024,2637.4,2637.3,4.07262051]
[1730255972366,0.0777024,2637.4,2637.3,0.28087051]
[1730255972660,0.8016,2637.5,2637.3,0.28087051]
[1730255973159,0.07786337,2637.4,2637.3,0.28087051]